fUSD/lending_fUSD_20240225
["ID","MTS","AMOUNT","RATE_DAILY","PERIOD"]
[315108383,1708829440992,-1649.83218101,0.00025125,4]
[315108384,1708829441017,-7933.12036213,0.00025125,4]
[315108385,1708829441028,-8947.21879473,0.00025125,4]
[315108386,1708829441043,-8943.78386462,0.00025125,4]
[315108387,1708829441054,-9077.54866152,0.00025125,4]
[315108389,1708829441065,-8943.84023489,0.00025125,4]
[315108645,1708829443469,-5779.91923567,0.00025125,4]
[315108921,1708829446159,-4172.9774912,0.00025123,2]
[315108923,1708829446169,-852.25826839,0.00025124,2]
[315108925,1708829446178,-349038.28100435,0.00025125,4]
[315108927,1708829446187,-213.77552086,0.00025125,2]
[315108929,1708829446196,-177859.77292203,0.00025125,2]
[315108931,1708829446210,-6863.73811229,0.00025125,2]
[315108958,1708829446450,-30444.50000054,0.00025125,2]
[315108965,1708829446509,-1269.67020626,0.00025125,2]
[315108967,1708829446520,-517.752235,0.00025125,2]
[315109255,1708829462866,156209.44982732,0.0002,2]
[315109256,1708829486079,156209.44982732,0.0002,2]
[315109257,1708829506071,156209.44982732,0.0002,2]
[315109259,1708829532077,156209.44982732,0.0002,2]
[315109260,1708829550080,10711.69864669,0.0002,2]
[315109264,1708829627538,2577.53270084,0.000142,2]
[315109272,1708829808441,865.136,0.00024166,10]
[315109273,1708829840483,1500.0,0.00027,14]
[315109274,1708829842818,1500.0,0.00027,14]
[315109275,1708829846090,1500.0,0.00027,14]
[315109276,1708829847148,1500.0,0.00027,14]
[315109277,1708829849805,1500.0,0.00027,14]
[315109278,1708829895256,366.41,0.00021763,2]
[315109284,1708830273974,207.0,0.00022981,2]
[315109294,1708830588956,348.08,0.00021265,2]
[315109307,1708830632390,-213.52359217,0.00023146,2]
[315109309,1708830632399,-161.33,0.00023147,2]
[315109310,1708830632408,-190.57,0.00023168,2]
[315109311,1708830632418,-226.21874148,0.00023177,2]
[315109312,1708830632430,-1421.52879784,0.00023177,2]
[315109313,1708830632449,-352.25246068,0.00023177,2]
[315109314,1708830632458,-311.57198449,0.00023183,2]
[315109315,1708830632474,-188.42801551,0.00023183,2]
[315109316,1708830632483,-250.0,0.00023249,2]
[315109317,1708830632628,-284.86556278,0.0002332,2]
[315109318,1708830632652,-1526.95921404,0.0002332,2]
[315109319,1708830632665,-608.0,0.0002332,2]
[315109320,1708830632682,-1753.15271438,0.0002332,2]
[315109321,1708830632692,-150.0,0.0002332,2]
[315109322,1708830632701,-1624.78202599,0.00023321,2]
[315109323,1708830632716,-19938.08797401,0.00023321,2]
[315109324,1708830632726,-156.00979891,0.00023385,2]
[315109325,1708830632736,-540.87,0.00023456,2]
[315109327,1708830632745,-4131.33,0.00023485,2]
[315109329,1708830632754,-179.15,0.00023495,2]
[315109330,1708830632764,-210.57,0.00023524,2]
[315109332,1708830632774,-264.83,0.00023528,2]
[315109334,1708830632783,-348.08,0.00023529,2]
[315109336,1708830632792,-210.57,0.00023589,2]
[315109337,1708830632801,-150.99,0.00023591,2]
[315109339,1708830632811,-668.69,0.00023592,2]
[315109341,1708830632821,-11680.48,0.00023592,2]
[315109343,1708830632832,-499.99,0.00023592,2]
[315109346,1708830632841,-13464.33,0.000236,2]
[315109348,1708830632851,-173.22,0.0002362,2]
[315109349,1708830632861,-172.79,0.00023642,2]
[315109351,1708830632871,-156.00979887,0.00023649,2]
[315109354,1708830632881,-210.57,0.00023653,2]
[315109355,1708830632891,-1093.34114811,0.00023716,2]
[315109358,1708830632901,-210.57,0.00023718,2]
[315109360,1708830632911,-210.57,0.00023782,2]
[315109362,1708830632921,-210.57,0.00023847,2]
[315109363,1708830632930,-2147.79778851,0.00023858,2]
[315109366,1708830632940,-1000.0,0.00023858,2]
[315109367,1708830632949,-210.57,0.00023911,2]
[315109369,1708830632959,-156.00979887,0.00023914,2]
[315109371,1708830632968,-210.57,0.00023976,2]
[315109373,1708830632979,-260.12,0.00024012,2]
[315109375,1708830632988,-459.13,0.00024027,2]
[315109377,1708830632998,-210.57,0.0002404,2]
[315109379,1708830633007,-210.57,0.00024105,2]
[315109381,1708830633017,-169.31,0.00024113,2]
[315109383,1708830633026,-210.57,0.00024169,2]
[315109386,1708830633036,-156.00979887,0.00024178,2]
[315109388,1708830633046,-707.63,0.0002419,2]
[315109389,1708830633055,-210.57,0.00024234,2]
[315109392,1708830633065,-210.57,0.00024298,2]
[315109393,1708830633075,-210.57,0.00024363,2]
[315109395,1708830633084,-392.78,0.00024384,2]
[315109397,1708830633094,-1841.39,0.00024384,2]
[315109398,1708830633103,-16200.783,0.00024384,2]
[315109399,1708830633113,-210.57,0.00024427,2]
[315109400,1708830633122,-156.00979887,0.00024443,2]
[315109401,1708830633131,-210.57,0.00024492,2]
[315109402,1708830633140,-210.57,0.00024556,2]
[315109403,1708830633150,-182.65705236,0.00024583,2]
[315109404,1708830633159,-210.57,0.00024621,2]
[315109405,1708830633168,-406.78,0.0002463,2]
[315109406,1708830633178,-918.74,0.0002463,2]
[315109407,1708830633187,-200.85794522,0.00024658,2]
[315109408,1708830633196,-151.13404833,0.00024658,2]
[315109409,1708830633206,-250.0,0.00024658,2]
[315109410,1708830633215,-250.0,0.00024658,2]
[315109411,1708830633225,-210.57,0.00024685,2]
[315109412,1708830633234,-156.00979887,0.00024707,2]
[315109413,1708830633243,-210.57,0.0002475,2]
[315109415,1708830633253,-918.74,0.00024795,2]
[315109417,1708830633262,-918.74,0.00024795,2]
[315109419,1708830633273,-20566.9784,0.00024823,2]
[315109421,1708830633283,-2905.87421259,0.000249,2]
[315109423,1708830633292,-81842.7163,0.00024923,2]
[315109425,1708830633304,-1000.0,0.00024923,2]
[315109427,1708830633313,-150.75,0.00024932,2]
[315109429,1708830633323,-218.18,0.00024932,2]
[315109431,1708830633332,-423.78,0.00024959,2]
[315109433,1708830633341,-156.00979887,0.00024971,2]
[315109435,1708830633351,-1500.0,0.00025,2]
[315109437,1708830633360,-1500.0,0.00025,2]
[315109439,1708830633370,-406.78,0.00025,2]
[315109441,1708830633379,-607.37948581,0.00025,2]
[315109445,1708830633407,-670.90925028,0.00025,2]
[315109504,1708830638321,-221.71126391,0.00025,2]
[315109505,1708830638331,-918.74,0.00025,2]
[315109506,1708830638340,-1521.25,0.00025,2]
[315109507,1708830638351,-1500.0,0.00025,2]
[315109508,1708830638361,-852.25826839,0.00025,2]
[315109509,1708830638370,-1250.0,0.00025,3]
[315109510,1708830638384,-1258.7970891,0.00025023,2]
[315109511,1708830638395,-15336.76737851,0.00025023,2]
[315109512,1708830638407,-10638.23803815,0.00025023,2]
[315109513,1708830638435,-2359.5364528,0.00025023,2]
[315109514,1708830638603,-25000.15303107,0.00025023,2]
[315109516,1708830638664,-2918.18979384,0.00025023,2]
[315109518,1708830638677,-994.0448245,0.00025023,2]
[315109844,1708830641813,-317.08963437,0.00025023,2]
[315109847,1708830641826,-16330.93834676,0.00025023,2]
[315109849,1708830641836,-5000.0,0.00025023,2]
[315109851,1708830641847,-423.89,0.00025041,2]
[315109853,1708830641857,-918.74,0.000251,2]
[315109855,1708830641869,-475.98,0.000251,2]
[315109857,1708830641880,-156.21968632,0.00025121,2]
[315109860,1708830641894,-1023.5068,0.00025122,2]
[315109862,1708830641905,-151.0,0.00025123,7]
[315109864,1708830641916,-151.0,0.00025123,7]
[315109866,1708830641927,-151.0,0.00025123,7]
[315109868,1708830641937,-151.0,0.00025123,7]
[315109870,1708830641947,-151.0,0.00025123,7]
[315109872,1708830641957,-151.0,0.00025123,7]
[315109875,1708830641968,-167.970624,0.00025123,7]
[315109877,1708830641979,-151.0,0.00025123,7]
[315109879,1708830641989,-151.0,0.00025123,7]
[315109881,1708830641999,-314.782157,0.00025123,3]
[315109883,1708830642009,-314.782157,0.00025123,3]
[315109885,1708830642019,-151.0,0.00025123,7]
[315109887,1708830642031,-151.0,0.00025123,2]
[315109889,1708830642043,-151.0,0.00025123,2]
[315109891,1708830642054,-219.532805,0.00025123,7]
[315109893,1708830642065,-151.0,0.00025123,7]
[315109895,1708830642077,-154.524342,0.00025123,7]
[315109897,1708830642086,-170.745626,0.00025123,7]
[315109899,1708830642096,-170.745626,0.00025123,7]
[315109901,1708830642106,-151.0,0.00025123,7]
[315109903,1708830642117,-151.0,0.00025123,7]
[315109905,1708830642127,-170.745626,0.00025123,7]
[315109907,1708830642137,-170.745626,0.00025123,7]
[315109909,1708830642146,-151.0,0.00025123,7]
[315109911,1708830642157,-151.0,0.00025123,7]
[315109913,1708830642166,-151.0,0.00025123,7]
[315109915,1708830642176,-151.0,0.00025123,7]
[315109917,1708830642186,-151.0,0.00025123,7]
[315109919,1708830642195,-163.689824,0.00025123,7]
[315109922,1708830642206,-151.0,0.00025123,7]
[315109924,1708830642216,-151.0,0.00025123,7]
[315109926,1708830642226,-151.0,0.00025123,7]
[315109928,1708830642236,-151.0,0.00025123,7]
[315109930,1708830642247,-151.0,0.00025123,7]
[315109932,1708830642258,-151.0,0.00025123,7]
[315109934,1708830642268,-151.0,0.00025123,7]
[315109936,1708830642278,-151.0,0.00025123,7]
[315109938,1708830642288,-185.429411,0.00025123,7]
[315109940,1708830642299,-185.429411,0.00025123,7]
[315109942,1708830642309,-185.429411,0.00025123,7]
[315109944,1708830642319,-185.429411,0.00025123,7]
[315109946,1708830642331,-151.0,0.00025123,7]
[315109948,1708830642341,-157.991219,0.00025123,7]
[315109950,1708830642352,-229.763736,0.00025123,7]
[315109952,1708830642362,-229.763736,0.00025123,7]
[315109954,1708830642374,-229.763736,0.00025123,7]
[315109957,1708830642384,-229.763736,0.00025123,7]
[315109959,1708830642397,-151.0,0.00025123,7]
[315109961,1708830642408,-151.0,0.00025123,7]
[315109963,1708830642419,-151.0,0.00025123,7]
[315109965,1708830642430,-151.0,0.00025123,7]
[315109967,1708830642440,-151.0,0.00025123,7]
[315109969,1708830642449,-151.0,0.00025123,7]
[315109971,1708830642459,-151.0,0.00025123,7]
[315109973,1708830642470,-151.0,0.00025123,7]
[315109975,1708830642480,-472.595783,0.00025123,7]
[315109977,1708830642490,-472.595783,0.00025123,7]
[315109979,1708830642500,-472.595783,0.00025123,7]
[315109981,1708830642510,-472.595783,0.00025123,7]
[315109983,1708830642520,-151.0,0.00025123,7]
[315109985,1708830642531,-154.790565,0.00025123,7]
[315109987,1708830642541,-151.0,0.00025123,7]
[315109989,1708830642552,-207.09388,0.00025123,7]
[315109991,1708830642564,-151.0,0.00025123,7]
[315109993,1708830642576,-157.113065,0.00025123,7]
[315109995,1708830642586,-158.900235,0.00025123,7]
[315109998,1708830642598,-243.876967,0.00025123,7]
[315110000,1708830642609,-151.0,0.00025123,7]
[315110002,1708830642619,-151.0,0.00025123,7]
[315110003,1708830642628,-151.0,0.00025123,7]
[315110004,1708830642638,-151.0,0.00025123,7]
[315110005,1708830642648,-151.0,0.00025123,7]
[315110006,1708830642657,-151.0,0.00025123,7]
[315110007,1708830642667,-151.0,0.00025123,7]
[315110008,1708830642678,-151.0,0.00025123,7]
[315110009,1708830642687,-151.0,0.00025123,7]
[315110010,1708830642697,-151.0,0.00025123,7]
[315110011,1708830642706,-151.0,0.00025123,7]
[315110012,1708830642720,-151.0,0.00025123,7]
[315110014,1708830642729,-151.0,0.00025123,7]
[315110016,1708830642739,-151.0,0.00025123,7]
[315110018,1708830642750,-151.0,0.00025123,7]
[315110020,1708830642760,-151.0,0.00025123,7]
[315110022,1708830642770,-151.0,0.00025123,7]
[315110024,1708830642781,-151.0,0.00025123,7]
[315110026,1708830642791,-6130.98,0.00025123,2]
[315110028,1708830642800,-151.0,0.00025123,7]
[315110030,1708830642809,-6130.98,0.00025123,2]
[315110032,1708830642819,-151.0,0.00025123,7]
[315110034,1708830642829,-913.22260511,0.00025123,2]
[315110037,1708830642852,-5217.75739489,0.00025123,2]
[315110039,1708830642861,-6130.98,0.00025123,2]
[315110041,1708830642871,-6130.98,0.00025123,2]
[315110044,1708830642881,-6130.98,0.00025123,2]
[315110046,1708830642891,-6130.98,0.00025123,2]
[315110048,1708830642900,-6130.98,0.00025123,2]
[315110050,1708830642910,-6130.98,0.00025123,2]
[315110052,1708830642920,-6130.98,0.00025123,2]
[315110054,1708830642930,-6130.98,0.00025123,2]
[315110056,1708830642939,-6130.98,0.00025123,2]
[315110058,1708830642949,-6130.98,0.00025123,2]
[315110060,1708830642958,-151.0,0.00025123,7]
[315110062,1708830642968,-6130.98,0.00025123,2]
[315110064,1708830642977,-159.50703,0.00025123,7]
[315110066,1708830642986,-6130.98,0.00025123,2]
[315110068,1708830642995,-6130.98,0.00025123,2]
[315110070,1708830643005,-6130.98,0.00025123,2]
[315110072,1708830643014,-6130.98,0.00025123,2]
[315110074,1708830643024,-6130.98,0.00025123,2]
[315110076,1708830643035,-6130.98,0.00025123,2]
[315110078,1708830643044,-6130.98,0.00025123,2]
[315110080,1708830643053,-151.0,0.00025123,7]
[315110082,1708830643062,-6130.98,0.00025123,2]
[315110084,1708830643071,-6130.98,0.00025123,2]
[315110086,1708830643080,-151.0,0.00025123,7]
[315110088,1708830643090,-6131.14535779,0.00025123,2]
[315110090,1708830643100,-151.0,0.00025123,7]
[315110092,1708830643109,-151.0,0.00025123,7]
[315110094,1708830643119,-151.0,0.00025123,7]
[315110096,1708830643128,-186.77795,0.00025123,7]
[315110098,1708830643137,-151.0,0.00025123,7]
[315110100,1708830643146,-151.0,0.00025123,7]
[315110102,1708830643156,-156.106987,0.00025123,7]
[315110104,1708830643165,-151.0,0.00025123,7]
[315110106,1708830643175,-154.506198,0.00025123,7]
[315110108,1708830643185,-151.0,0.00025123,7]
[315110110,1708830643195,-151.0,0.00025123,7]
[315110113,1708830643207,-482.429726,0.00025123,7]
[315110116,1708830643216,-482.429726,0.00025123,7]
[315110118,1708830643227,-151.0,0.00025123,7]
[315110122,1708830643237,-153.879019,0.00025123,7]
[315110126,1708830643246,-482.429726,0.00025123,7]
[315110129,1708830643255,-482.429726,0.00025123,7]
[315110133,1708830643265,-119608.85,0.00025123,2]
[315110137,1708830643274,-388231.54345182,0.00025123,4]
[315110142,1708830643285,-837421.40242223,0.00025123,2]
[315110145,1708830643294,-155.67647154,0.00025124,2]
[315110147,1708830643304,-7039.56401319,0.00025125,2]
[315110149,1708830643313,-2341.1565,0.00025126,2]
[315110151,1708830643323,-847.14,0.00025151,2]
[315110153,1708830643332,-344.29,0.00025151,2]
[315110155,1708830643341,-150.0,0.00025151,2]
[315110157,1708830643350,-2039.4612474,0.000252,2]
[315110159,1708830643360,-151.0,0.0002522,7]
[315110161,1708830643370,-151.0,0.0002522,7]
[315110175,1708830643472,-151.0,0.0002522,7]
[315110177,1708830643482,-151.0,0.0002522,7]
[315110179,1708830643492,-151.0,0.0002522,7]
[315110181,1708830643502,-151.0,0.0002522,7]
[315110184,1708830643512,-151.0,0.0002522,7]
[315110186,1708830643521,-151.0,0.0002522,7]
[315110188,1708830643532,-151.0,0.0002522,7]
[315110190,1708830643540,-151.0,0.0002522,7]
[315110192,1708830643549,-181.862089,0.0002522,7]
[315110194,1708830643559,-314.782157,0.0002522,3]
[315110196,1708830643569,-314.782157,0.0002522,3]
[315110198,1708830643579,-151.0,0.0002522,7]
[315110200,1708830643588,-151.0,0.00025221,7]
[315110202,1708830643598,-151.0,0.00025221,7]
[315110204,1708830643607,-151.0,0.00025221,7]
[315110206,1708830643616,-565.02353842,0.00025224,5]
[315110208,1708830643625,-155.0,0.00025225,2]
[315110210,1708830643634,-160.72919295,0.00025226,2]
[315110212,1708830643643,-300.0,0.00025228,2]
[315110214,1708830643652,-300.0,0.00025228,2]
[315110216,1708830643661,-277.01153519,0.00025228,2]
[315110218,1708830643670,-151.0,0.00025229,7]
[315110220,1708830643679,-151.0,0.00025229,7]
[315110222,1708830643688,-151.0,0.00025229,7]
[315110224,1708830643698,-151.0,0.00025229,7]
[315110226,1708830643707,-155.021017,0.00025229,7]
[315110228,1708830643716,-151.0,0.00025229,7]
[315110230,1708830643725,-156.277747,0.00025229,7]
[315110231,1708830643734,-153.552527,0.00025229,7]
[315110233,1708830643743,-151.0,0.00025229,7]
[315110235,1708830643753,-151.0,0.00025229,7]
[315110237,1708830643764,-629.301387,0.00025229,7]
[315110238,1708830643773,-629.301387,0.00025229,7]
[315110239,1708830643783,-156.00979887,0.00025236,2]
[315110240,1708830643792,-668.69,0.00025236,2]
[315110241,1708830643802,-1169.51847719,0.00025247,2]
[315110242,1708830643811,-200.0,0.00025377,2]
[315110243,1708830643820,-200.0,0.00025378,2]
[315110244,1708830643829,-800.0,0.00025378,2]
[315110245,1708830643838,-200.0,0.00025378,2]
[315110246,1708830643848,-200.0,0.00025378,2]
[315110247,1708830643858,-500.0,0.00025378,2]
[315110248,1708830643868,-167.92,0.00025482,2]
[315110249,1708830643878,-466.54,0.0002549,2]
[315110250,1708830643888,-156.00979887,0.000255,2]
[315110251,1708830643898,-7039.56401311,0.00025522,2]
[315110252,1708830643907,-151.0,0.00025522,7]
[315110253,1708830643916,-151.0,0.00025522,7]
[315110254,1708830643926,-151.0,0.00025522,7]
[315110255,1708830643935,-184.491189,0.00025522,7]
[315110256,1708830643944,-151.0,0.00025522,7]
[315110257,1708830643955,-459.58742753,0.00025582,2]
[315110258,1708830643965,-151.0,0.00025584,7]
[315110259,1708830643975,-151.0,0.00025584,7]
[315110260,1708830643984,-151.0,0.00025584,7]
[315110261,1708830643994,-271.328766,0.00025585,7]
[315110262,1708830644003,-151.0,0.00025585,7]
[315110263,1708830644012,-151.0,0.00025585,7]
[315110264,1708830644022,-150.01,0.00025586,2]
[315110266,1708830644032,-3960.63414802,0.00025586,2]
[315110267,1708830644041,-226.069493,0.00025586,7]
[315110268,1708830644050,-151.0,0.00025586,7]
[315110269,1708830644060,-151.0,0.00025586,7]
[315110270,1708830644069,-151.0,0.00025586,7]
[315110271,1708830644078,-151.0,0.00025586,7]
[315110272,1708830644087,-153.417017,0.00025586,7]
[315110273,1708830644096,-151.0,0.00025586,7]
[315110275,1708830644106,-629.301387,0.00025586,7]
[315110277,1708830644115,-629.301387,0.00025586,7]
[315110278,1708830644123,-158.15,0.00025589,2]
[315110279,1708830644132,-1127.2,0.000256,2]
[315110280,1708830644141,-168.23321735,0.000256,2]
[315110281,1708830644150,-151.0,0.000256,7]
[315110282,1708830644159,-151.0,0.000256,7]
[315110283,1708830644169,-157.456429,0.000256,7]
[315110284,1708830644178,-151.0,0.000256,7]
[315110285,1708830644188,-55555.0,0.000256,2]
[315110286,1708830644198,-152.56796089,0.000256,2]
[315110287,1708830644208,-205.42721881,0.000256,2]
[315110288,1708830644217,-2011.59885179,0.000256,2]
[315110289,1708830644227,-192.5772683,0.000256,2]
[315110290,1708830644236,-525.60247946,0.000256,2]
[315110291,1708830644246,-155.4141422,0.000256,4]
[315110292,1708830644257,-154.02,0.00025617,2]
[315110293,1708830644266,-1258.79708904,0.00025622,2]
[315110294,1708830644274,-180.97,0.00025642,2]
[315110295,1708830644284,-158.0,0.00025699,2]
[315110296,1708830644294,-196.47806673,0.000257,2]
[315110297,1708830644304,-2145690.04539295,0.000257,3]
[315110298,1708830644314,-153.555977,0.000257,7]
[315110299,1708830644324,-151.0,0.000257,7]
[315110300,1708830644334,-259.690866,0.000257,7]
[315110301,1708830644344,-152.857535,0.000257,7]
[315110302,1708830644353,-280.050022,0.000257,7]
[315110303,1708830644362,-629.301387,0.000257,7]
[315110304,1708830644371,-629.301387,0.000257,7]
[315110305,1708830644379,-151.0,0.000257,7]
[315110306,1708830644392,-156.778285,0.000257,7]
[315110307,1708830644401,-151.0,0.000257,7]
[315110308,1708830644409,-157.372324,0.000257,7]
[315110309,1708830644418,-151.0,0.000257,7]
[315110310,1708830644427,-152.507575,0.000257,7]
[315110311,1708830644437,-151.0,0.000257,7]
[315110312,1708830644446,-152.130958,0.000257,7]
[315110313,1708830644455,-170.65948,0.000257,7]
[315110314,1708830644465,-159.171712,0.000257,7]
[315110315,1708830644474,-152.181497,0.000257,7]
[315110316,1708830644483,-151.0,0.000257,7]
[315110317,1708830644492,-161.703927,0.000257,7]
[315110318,1708830644501,-151.0,0.000257,7]
[315110319,1708830644510,-234.078054,0.000257,7]
[315110320,1708830644519,-314.782157,0.000257,3]
[315110321,1708830644528,-314.782157,0.000257,3]
[315110322,1708830644537,-151.0,0.000257,7]
[315110323,1708830644545,-151.0,0.000257,2]
[315110324,1708830644554,-170.745626,0.000257,7]
[315110325,1708830644563,-151.0,0.000257,7]
[315110326,1708830644573,-170.745626,0.000257,7]
[315110327,1708830644582,-154.614815,0.000257,7]
[315110328,1708830644591,-161.809943,0.000257,7]
[315110329,1708830644601,-157.521164,0.000257,7]
[315110330,1708830644610,-151.0,0.000257,7]
[315110331,1708830644619,-154.245584,0.000257,7]
[315110332,1708830644629,-151.0,0.000257,7]
[315110333,1708830644638,-185.429411,0.000257,7]
[315110334,1708830644647,-185.429411,0.000257,7]
[315110335,1708830644656,-229.763736,0.000257,7]
[315110336,1708830644665,-229.763736,0.000257,7]
[315110337,1708830644675,-156.129839,0.000257,7]
[315110338,1708830644684,-151.0,0.000257,7]
[315110339,1708830644694,-151.0,0.000257,7]
[315110340,1708830644703,-151.0,0.000257,7]
[315110341,1708830644712,-472.595783,0.000257,7]
[315110342,1708830644721,-472.595783,0.000257,7]
[315110343,1708830644730,-155.639157,0.000257,7]
[315110344,1708830644739,-153.164759,0.000257,7]
[315110345,1708830644749,-151.0,0.000257,7]
[315110346,1708830644758,-151.0,0.000257,7]
[315110347,1708830644767,-151.0,0.000257,7]
[315110348,1708830644777,-151.0,0.000257,7]
[315110349,1708830644787,-168.692327,0.000257,7]
[315110350,1708830644797,-151.0,0.000257,7]
[315110351,1708830644807,-260.8580735,0.000257,7]
[315110352,1708830644816,-151.0,0.000257,7]
[315110353,1708830644826,-151.0,0.000257,7]
[315110354,1708830644836,-151.0,0.000257,7]
[315110355,1708830644846,-155.472937,0.000257,7]
[315110356,1708830644857,-482.429726,0.000257,7]
[315110357,1708830644867,-482.429726,0.000257,7]
[315110358,1708830644877,-180.97,0.00025769,2]
[315110359,1708830644887,-348.08,0.00025793,2]
[315110360,1708830644896,-1000.0,0.000258,3]
[315110361,1708830644905,-2555.861,0.00025834,2]
[315110362,1708830644914,-2935.0,0.00025834,2]
[315110363,1708830644923,-5977.459,0.00025834,2]
[315110364,1708830644933,-251.215,0.00025834,2]
[315110365,1708830644943,-2296.899,0.00025834,2]
[315110366,1708830644952,-5881.25779331,0.00025834,2]
[315110367,1708830645378,-2195.62673097,0.00025834,2]
[315110368,1708830645413,-11637.94868452,0.00025834,2]
[315110369,1708830645433,-190.1667912,0.00025834,2]
[315110370,1708830645443,-1040.0,0.00025834,2]
[315110371,1708830645455,-179.15,0.00025844,2]
[315110372,1708830645469,-1000.0,0.00025858,2]
[315110373,1708830645478,-174.17,0.00025867,2]
[315110374,1708830645488,-0.5632088,0.00025896,2]
[315110388,1708830646569,-4172.9774912,0.00025022,2]
[315110389,1708830646578,-162.350098,0.00025123,7]
[315110390,1708830646587,-180.4067912,0.00025896,2]
[315110391,1708830646596,-7039.56401311,0.00025918,2]
[315110392,1708830646605,-173.22,0.00025982,2]
[315110393,1708830646614,-158.15,0.00026002,2]
[315110394,1708830646623,-180.97,0.00026023,2]
[315110395,1708830646633,-150.0,0.00026079,2]
[315110396,1708830646643,-20615.6820026,0.00026084,2]
[315110397,1708830646832,-2582.55,0.00026084,2]
[315110398,1708830646852,-213.52359217,0.00025228,2]
[315110399,1708830646861,-9286.47640033,0.00026084,2]
[315110401,1708830844938,199.59,0.00025095,120]
[315110403,1708831051563,335.64,0.00022868,2]
[315110407,1708831550701,318.85,0.00022129,2]
[315110413,1708831718685,1000.0,0.00023,2]
[315110415,1708831742603,1002.0,0.00025,7]
[315110424,1708831831569,-1016.54626931,0.00023098,2]
[315110425,1708831831626,-1512.0,0.00023098,2]
[315110427,1708831831638,-1644.43122189,0.00023098,2]
[315110429,1708831831648,-497.43908695,0.00023099,2]
[315110431,1708831831659,-318.62463799,0.00023099,2]
[315110433,1708831831671,-438.89448906,0.00023099,2]
[315110435,1708831831681,-422.69818629,0.00023572,2]
[315110437,1708831831690,-150.0,0.00023572,2]
[315110438,1708831831700,-3993.08494381,0.00023573,2]
[315110439,1708831831719,-1006.91505619,0.00023573,2]
[315110440,1708831831729,-262.67,0.00023885,2]
[315110441,1708831831738,-154.02,0.000239,2]
[315110442,1708831831751,-544.69529636,0.00023924,2]
[315110443,1708831831763,-404.06947543,0.00023924,2]
[315110444,1708831831774,-1500.0,0.00023924,2]
[315110445,1708831831786,-397.41301711,0.00023924,2]
[315110446,1708831831809,-495.6858013,0.00023924,2]
[315110447,1708831831847,-1271.24,0.00023924,2]
[315110448,1708831831912,-8415.26832791,0.00023924,2]
[315110449,1708831837477,-332.05198382,0.00023924,2]
[315110450,1708831837533,-8801.68609807,0.00023924,2]
[315110451,1708831837543,-567.3,0.0002395,2]
[315110452,1708831837553,-838.21,0.00023958,2]
[315110453,1708831837563,-2000.0,0.00023976,2]
[315110454,1708831837572,-200.0,0.00023997,2]
[315110455,1708831837582,-350.0,0.00024,2]
[315110456,1708831837593,-2114.08,0.00024052,2]
[315110457,1708831837602,-250.0,0.00024128,2]
[315110458,1708831837611,-432.7,0.00024239,2]
[315110459,1708831837620,-179.15,0.00024254,2]
[315110460,1708831837631,-162.14,0.00024282,2]
[315110461,1708831837640,-158.64525211,0.00024375,2]
[315110462,1708831837651,-1534.49,0.00024384,2]
[315110463,1708831837662,-766.24,0.00024384,2]